[Event "*** Titled Tuesday Blitz"]
[Site "Chess.com"]
[Date "2021.04.06"]
[Round "4"]
[White "ErikRonka"]
[Black "VitaRasik"]
[Result "0-1"]
[WhiteElo "2440"]
[BlackElo "2598"]
[TimeControl "180+1"]
[EndTime "10:40:33 PDT"]
[Termination "VitaRasik won by checkmate"]

1. d4 {[%clk 0:03:00.9]} 1... d6 {[%clk 0:02:59.6]} 2. e4 {[%clk 0:02:59]} 2...
g6 {[%clk 0:02:59.6]} 3. Bc4 {[%clk 0:02:51.8]} 3... Bg7 {[%clk 0:02:59.2]} 4.
Nf3 {[%clk 0:02:52.4]} 4... c6 {[%clk 0:02:58.4]} 5. h3 {[%clk 0:02:45.6]} 5...
d5 {[%clk 0:02:57.7]} 6. Bb3 {[%clk 0:02:45.6]} 6... dxe4 {[%clk 0:02:56.7]} 7.
Ng5 {[%clk 0:02:46.1]} 7... Nh6 {[%clk 0:02:56.9]} 8. c3 {[%clk 0:02:45.7]} 8...
O-O {[%clk 0:02:51]} 9. Nxe4 {[%clk 0:02:35.9]} 9... Nf5 {[%clk 0:02:41.8]} 10.
O-O {[%clk 0:02:32.9]} 10... Nd6 {[%clk 0:02:30.7]} 11. Nbd2 {[%clk 0:02:17.9]}
11... Na6 {[%clk 0:02:23.5]} 12. Re1 {[%clk 0:02:11]} 12... Nc7 {[%clk
0:02:15.8]} 13. Nc5 {[%clk 0:01:52.9]} 13... b6 {[%clk 0:02:09.3]} 14. Nd3
{[%clk 0:01:52.3]} 14... Be6 {[%clk 0:02:01.6]} 15. Nf3 {[%clk 0:01:50.7]} 15...
Bxb3 {[%clk 0:01:56.6]} 16. axb3 {[%clk 0:01:51.6]} 16... Nd5 {[%clk 0:01:47.3]}
17. Qe2 {[%clk 0:01:41]} 17... e6 {[%clk 0:01:43.9]} 18. Nfe5 {[%clk 0:01:27.4]}
18... Qc7 {[%clk 0:01:43.3]} 19. h4 {[%clk 0:01:27.3]} 19... Nf6 {[%clk
0:01:38.4]} 20. Bf4 {[%clk 0:01:21.7]} 20... b5 {[%clk 0:00:58.9]} 21. Nc5
{[%clk 0:01:08.5]} 21... a5 {[%clk 0:00:56.4]} 22. Qf3 {[%clk 0:00:54.4]} 22...
Rac8 {[%clk 0:00:46.5]} 23. Ned3 {[%clk 0:00:40.9]} 23... Qe7 {[%clk 0:00:37.6]}
24. Rxa5 {[%clk 0:00:39]} 24... Nf5 {[%clk 0:00:37.7]} 25. g3 {[%clk 0:00:33.1]}
25... h5 {[%clk 0:00:35.4]} 26. Rea1 {[%clk 0:00:32.6]} 26... Rfd8 {[%clk
0:00:29]} 27. Ra7 {[%clk 0:00:31.9]} 27... Qe8 {[%clk 0:00:28]} 28. Bg5 {[%clk
0:00:32]} 28... Ra8 {[%clk 0:00:25.6]} 29. Ne5 {[%clk 0:00:30.7]} 29... Rxa7
{[%clk 0:00:25]} 30. Rxa7 {[%clk 0:00:31.6]} 30... Rd5 {[%clk 0:00:16.6]} 31.
Ra6 {[%clk 0:00:27.1]} 31... Nh7 {[%clk 0:00:15.3]} 32. Bf4 {[%clk 0:00:21.3]}
32... Bxe5 {[%clk 0:00:13]} 33. Bxe5 {[%clk 0:00:20.7]} 33... Nf8 {[%clk
0:00:12]} 34. Bf4 {[%clk 0:00:17.7]} 34... Nd7 {[%clk 0:00:10.9]} 35. Nxd7
{[%clk 0:00:17.3]} 35... Qxd7 {[%clk 0:00:11]} 36. Ra8+ {[%clk 0:00:17.6]} 36...
Kh7 {[%clk 0:00:10.4]} 37. Be5 {[%clk 0:00:17.2]} 37... Rxe5 {[%clk 0:00:08.2]}
38. dxe5 {[%clk 0:00:16.9]} 38... c5 {[%clk 0:00:07.4]} 39. Ra1 {[%clk
0:00:13.1]} 39... Qd2 {[%clk 0:00:06.8]} 40. Rd1 {[%clk 0:00:12.7]} 40... Qxb2
{[%clk 0:00:06.8]} 41. Rd7 {[%clk 0:00:13]} 41... Kg7 {[%clk 0:00:05]} 42. Qf4
{[%clk 0:00:12.7]} 42... Qb1+ {[%clk 0:00:04.3]} 43. Kg2 {[%clk 0:00:12.4]}
43... Qc2 {[%clk 0:00:04.4]} 44. Qg5 {[%clk 0:00:10.7]} 44... Qe4+ {[%clk
0:00:04.5]} 45. Kh2 {[%clk 0:00:10]} 45... Qxe5 {[%clk 0:00:05.2]} 46. Qd8
{[%clk 0:00:07.5]} 46... Qe2 {[%clk 0:00:04.3]} 47. Kg2 {[%clk 0:00:07]} 47...
Ne3+ {[%clk 0:00:04.6]} 48. Kh3 {[%clk 0:00:05.3]} 48... Qf1+ {[%clk 0:00:03.9]}
49. Kh2 {[%clk 0:00:05.2]} 49... Qg2# {[%clk 0:00:04.6]} 0-1

[Event "*** Titled Tuesday Blitz"]
[Site "Chess.com"]
[Date "2021.04.06"]
[Round "4"]
[White "YumiBear"]
[Black "anon6121824"]
[Result "0-1"]
[WhiteElo "2544"]
[BlackElo "2780"]
[TimeControl "180+1"]
[EndTime "10:40:35 PDT"]
[Termination "anon6121824 won by resignation"]

1. e4 {[%clk 0:03:00.3]} 1... Nf6 {[%clk 0:02:59.7]} 2. e5 {[%clk 0:02:58.4]}
2... Nd5 {[%clk 0:02:59.4]} 3. d4 {[%clk 0:02:59.1]} 3... d6 {[%clk 0:02:58.6]}
4. Nf3 {[%clk 0:02:59.8]} 4... Nb6 {[%clk 0:02:57.3]} 5. Bd3 {[%clk 0:02:56.3]}
5... g6 {[%clk 0:02:57.9]} 6. O-O {[%clk 0:02:55.9]} 6... Bg7 {[%clk 0:02:57.6]}
7. exd6 {[%clk 0:02:56.4]} 7... cxd6 {[%clk 0:02:57]} 8. h3 {[%clk 0:02:56]}
8... O-O {[%clk 0:02:57.1]} 9. c4 {[%clk 0:02:54.7]} 9... Nc6 {[%clk 0:02:57.5]}
10. Be3 {[%clk 0:02:53.6]} 10... e5 {[%clk 0:02:56.3]} 11. dxe5 {[%clk
0:02:50.6]} 11... dxe5 {[%clk 0:02:56.4]} 12. Nc3 {[%clk 0:02:48.4]} 12... Be6
{[%clk 0:02:57]} 13. Qe2 {[%clk 0:02:46.5]} 13... Re8 {[%clk 0:02:55]} 14. Rfd1
{[%clk 0:02:42.1]} 14... Nd4 {[%clk 0:02:54.7]} 15. Bxd4 {[%clk 0:02:30.1]}
15... exd4 {[%clk 0:02:55.6]} 16. Ne4 {[%clk 0:02:30.5]} 16... Bxc4 {[%clk
0:02:56.2]} 17. Bxc4 {[%clk 0:02:28.1]} 17... Nxc4 {[%clk 0:02:56.1]} 18. Qxc4
{[%clk 0:02:22.3]} 18... Rxe4 {[%clk 0:02:56.5]} 19. Rd3 {[%clk 0:02:21.2]}
19... Qd7 {[%clk 0:02:51.3]} 20. Rad1 {[%clk 0:02:20.3]} 20... Rd8 {[%clk
0:02:50]} 21. Qc5 {[%clk 0:02:18.9]} 21... b6 {[%clk 0:02:47.9]} 22. Qg5 {[%clk
0:02:09]} 22... h6 {[%clk 0:02:46.6]} 23. Qd2 {[%clk 0:02:03.8]} 23... g5 {[%clk
0:02:46.2]} 24. Rc1 {[%clk 0:01:46.5]} 24... Rde8 {[%clk 0:02:38.6]} 25. Rd1
{[%clk 0:01:40.2]} 25... g4 {[%clk 0:02:25.5]} 26. hxg4 {[%clk 0:01:39.1]} 26...
Qxg4 {[%clk 0:02:25]} 27. Kf1 {[%clk 0:01:16.2]} 27... Qh5 {[%clk 0:02:21.8]}
28. Ng1 {[%clk 0:01:09]} 28... Qg6 {[%clk 0:02:08]} 29. Rg3 {[%clk 0:01:05.8]}
29... Qe6 {[%clk 0:02:07.6]} 30. Nf3 {[%clk 0:00:48.4]} 30... Kh8 {[%clk
0:01:58.4]} 31. Kg1 {[%clk 0:00:34.2]} 31... f5 {[%clk 0:01:57.2]} 32. Qd3
{[%clk 0:00:26.2]} 32... Qxa2 {[%clk 0:01:45.8]} 33. Rg6 {[%clk 0:00:25.2]}
33... Qf7 {[%clk 0:01:35.6]} 34. Rc6 {[%clk 0:00:23.3]} 34... R8e6 {[%clk
0:01:34]} 35. Rc8+ {[%clk 0:00:23]} 35... Kh7 {[%clk 0:01:31.5]} 36. Rdc1 {[%clk
0:00:23.4]} 36... Re7 {[%clk 0:01:30.2]} 37. R8c6 {[%clk 0:00:23]} 37... Qh5
{[%clk 0:01:25.3]} 38. Rc7 {[%clk 0:00:11]} 38... Qg6 {[%clk 0:01:17.2]} 39.
Rxe7 {[%clk 0:00:10.1]} 39... Rxe7 {[%clk 0:01:12.9]} 40. Rc8 {[%clk 0:00:04.5]}
40... Qe6 {[%clk 0:01:08.6]} 41. Rc1 {[%clk 0:00:03]} 41... Qe4 {[%clk
0:01:08.3]} 42. Qb5 {[%clk 0:00:02.5]} 42... d3 {[%clk 0:01:06.5]} 43. Re1
{[%clk 0:00:02.3]} 43... d2 {[%clk 0:00:56.3]} 44. Rd1 {[%clk 0:00:01.5]} 44...
Bf6 {[%clk 0:00:39.7]} 45. Rxd2 {[%clk 0:00:01.9]} 45... Rg7 {[%clk 0:00:38.8]}
46. Rd3 {[%clk 0:00:01.2]} 46... h5 {[%clk 0:00:31.6]} 47. Qd5 {[%clk
0:00:01.6]} 47... Bxb2 {[%clk 0:00:29.3]} 48. Qxe4 {[%clk 0:00:01.7]} 48... fxe4
{[%clk 0:00:29.7]} 49. Rb3 {[%clk 0:00:01.9]} 49... exf3 {[%clk 0:00:30.2]} 50.
Rxb2 {[%clk 0:00:01.9]} 50... Rxg2+ {[%clk 0:00:29.7]} 51. Kf1 {[%clk
0:00:02.8]} 51... Rg5 {[%clk 0:00:27.8]} 52. Rb3 {[%clk 0:00:03.1]} 52... Rf5
{[%clk 0:00:28]} 53. Rc3 {[%clk 0:00:03.4]} 53... Kg6 {[%clk 0:00:27.8]} 54. Rc7
{[%clk 0:00:03.6]} 54... Ra5 {[%clk 0:00:27]} 55. Rc6+ {[%clk 0:00:03.8]} 55...
Kg5 {[%clk 0:00:26.5]} 56. Rc3 {[%clk 0:00:04.7]} 0-1

[Event "*** Titled Tuesday Blitz"]
[Site "Chess.com"]
[Date "2021.04.06"]
[Round "4"]
[White "Durarbayli"]
[Black "Keks2017"]
[Result "1-0"]
[WhiteElo "2743"]
[BlackElo "2530"]
[TimeControl "180+1"]
[EndTime "10:40:35 PDT"]
[Termination "Durarbayli won by checkmate"]

1. e4 {[%clk 0:02:58.4]} 1... d6 {[%clk 0:02:59.7]} 2. d4 {[%clk 0:02:57.9]}
2... Nf6 {[%clk 0:02:59.4]} 3. Nc3 {[%clk 0:02:58.5]} 3... g6 {[%clk 0:02:59.1]}
4. Nf3 {[%clk 0:02:52.4]} 4... Bg7 {[%clk 0:02:58.3]} 5. h3 {[%clk 0:02:49.4]}
5... O-O {[%clk 0:02:57.3]} 6. Be3 {[%clk 0:02:46.4]} 6... a6 {[%clk 0:02:57.2]}
7. a4 {[%clk 0:02:39.1]} 7... e6 {[%clk 0:02:56]} 8. Bd3 {[%clk 0:02:35.3]} 8...
Nc6 {[%clk 0:02:55.9]} 9. Qd2 {[%clk 0:02:31.2]} 9... b6 {[%clk 0:02:53.2]} 10.
Bh6 {[%clk 0:02:30.1]} 10... Bb7 {[%clk 0:02:52.5]} 11. Bxg7 {[%clk 0:02:24.9]}
11... Kxg7 {[%clk 0:02:50.9]} 12. Ne2 {[%clk 0:02:23.6]} 12... e5 {[%clk
0:02:40.9]} 13. d5 {[%clk 0:02:16.4]} 13... Ne7 {[%clk 0:02:40.6]} 14. Ng3
{[%clk 0:02:15.5]} 14... c6 {[%clk 0:02:34.3]} 15. dxc6 {[%clk 0:02:10.6]} 15...
Bxc6 {[%clk 0:02:34.1]} 16. O-O {[%clk 0:01:48.2]} 16... b5 {[%clk 0:02:27]} 17.
axb5 {[%clk 0:01:36.6]} 17... axb5 {[%clk 0:02:26.4]} 18. Qb4 {[%clk 0:01:36.6]}
18... Qd7 {[%clk 0:02:18.5]} 19. Rfd1 {[%clk 0:01:29.4]} 19... Rxa1 {[%clk
0:02:12.3]} 20. Rxa1 {[%clk 0:01:30.3]} 20... Rd8 {[%clk 0:02:12]} 21. Ra6
{[%clk 0:01:07.9]} 21... Qc7 {[%clk 0:01:24.5]} 22. Qa3 {[%clk 0:00:58.8]} 22...
Nc8 {[%clk 0:01:23.5]} 23. Qc3 {[%clk 0:00:53.7]} 23... Ne7 {[%clk 0:01:04.1]}
24. Bxb5 {[%clk 0:00:46.7]} 24... Rc8 {[%clk 0:01:04.1]} 25. Bd3 {[%clk
0:00:38.4]} 25... Qb7 {[%clk 0:01:01.6]} 26. Qa3 {[%clk 0:00:35.2]} 26... Qb8
{[%clk 0:00:47.8]} 27. Nxe5 {[%clk 0:00:26.1]} 27... dxe5 {[%clk 0:00:40]} 28.
Qxe7 {[%clk 0:00:27]} 28... Qxb2 {[%clk 0:00:39.1]} 29. Kh2 {[%clk 0:00:21.5]}
29... Qd4 {[%clk 0:00:20.2]} 30. f3 {[%clk 0:00:21.9]} 30... Re8 {[%clk
0:00:16.2]} 31. Qc7 {[%clk 0:00:18.7]} 31... Bd7 {[%clk 0:00:15.7]} 32. Rd6
{[%clk 0:00:15.8]} 32... Qa1 {[%clk 0:00:14.3]} 33. Rxd7 {[%clk 0:00:15.1]}
33... Nxd7 {[%clk 0:00:14.5]} 34. Qxd7 {[%clk 0:00:16]} 34... Qa8 {[%clk
0:00:12.9]} 35. Bc4 {[%clk 0:00:15.6]} 35... Rf8 {[%clk 0:00:13.1]} 36. Bd5
{[%clk 0:00:15.5]} 36... Qe8 {[%clk 0:00:12.6]} 37. Qd6 {[%clk 0:00:15]} 37...
f6 {[%clk 0:00:11.9]} 38. c4 {[%clk 0:00:14.6]} 38... h5 {[%clk 0:00:11.7]} 39.
c5 {[%clk 0:00:13]} 39... h4 {[%clk 0:00:12]} 40. Nf1 {[%clk 0:00:13.4]} 40...
Kh6 {[%clk 0:00:08.7]} 41. Ne3 {[%clk 0:00:12.1]} 41... Kg5 {[%clk 0:00:08.7]}
42. c6 {[%clk 0:00:11.9]} 42... Rh8 {[%clk 0:00:07.5]} 43. c7 {[%clk 0:00:11.4]}
43... Qa4 {[%clk 0:00:07.2]} 44. Ng4 {[%clk 0:00:09.9]} 44... f5 {[%clk
0:00:04.2]} 45. Qf6+ {[%clk 0:00:09.4]} 45... Kf4 {[%clk 0:00:04.2]} 46. Qxe5+
{[%clk 0:00:09.7]} 46... Kg5 {[%clk 0:00:04]} 47. f4+ {[%clk 0:00:08]} 47... Kh5
{[%clk 0:00:02.1]} 48. Qxh8# {[%clk 0:00:08.9]} 1-0

[Event "*** Titled Tuesday Blitz"]
[Site "Chess.com"]
[Date "2021.04.06"]
[Round "4"]
[White "RamyresCoelho"]
[Black "ffbp3q"]
[Result "1-0"]
[WhiteElo "2185"]
[BlackElo "2388"]
[TimeControl "180+1"]
[EndTime "10:40:35 PDT"]
[Termination "RamyresCoelho won on time"]

1. e4 {[%clk 0:03:00.6]} 1... c5 {[%clk 0:02:59.1]} 2. Nf3 {[%clk 0:03:00.4]}
2... d6 {[%clk 0:02:58.7]} 3. d4 {[%clk 0:03:00.8]} 3... cxd4 {[%clk 0:02:58.9]}
4. Nxd4 {[%clk 0:03:01.3]} 4... Nf6 {[%clk 0:02:59]} 5. Nc3 {[%clk 0:03:01.8]}
5... a6 {[%clk 0:02:59.4]} 6. f3 {[%clk 0:03:01.3]} 6... e5 {[%clk 0:02:55.7]}
7. Nb3 {[%clk 0:03:00.4]} 7... Be6 {[%clk 0:02:51.5]} 8. Be3 {[%clk 0:03:00.4]}
8... h5 {[%clk 0:02:49.4]} 9. Qd2 {[%clk 0:02:59.8]} 9... Nbd7 {[%clk
0:02:49.4]} 10. O-O-O {[%clk 0:03:00.1]} 10... Qc7 {[%clk 0:02:49.6]} 11. Kb1
{[%clk 0:02:59.3]} 11... g6 {[%clk 0:02:43.7]} 12. a4 {[%clk 0:02:55.5]} 12...
Rc8 {[%clk 0:02:38.7]} 13. h4 {[%clk 0:02:54.7]} 13... Be7 {[%clk 0:02:35.3]}
14. Bd3 {[%clk 0:02:53.8]} 14... Kf8 {[%clk 0:02:28.8]} 15. Bh6+ {[%clk
0:02:51.2]} 15... Kg8 {[%clk 0:02:29]} 16. Bg5 {[%clk 0:02:50.8]} 16... Kg7
{[%clk 0:02:26.6]} 17. Nd5 {[%clk 0:02:44.6]} 17... Bxd5 {[%clk 0:02:23.8]} 18.
exd5 {[%clk 0:02:31.9]} 18... Nxd5 {[%clk 0:02:10.8]} 19. Bxg6 {[%clk
0:02:26.1]} 19... N7f6 {[%clk 0:01:10.3]} 20. Bf5 {[%clk 0:02:11.4]} 20... Rcd8
{[%clk 0:01:00.3]} 21. Rh3 {[%clk 0:02:02.3]} 21... Nb6 {[%clk 0:00:58.1]} 22.
Rg3 {[%clk 0:01:35.9]} 22... Kf8 {[%clk 0:00:58]} 23. Bh6+ {[%clk 0:01:31.1]}
23... Ke8 {[%clk 0:00:55.6]} 24. Bg5 {[%clk 0:01:09.1]} 24... d5 {[%clk
0:00:53.6]} 25. Re1 {[%clk 0:00:52.9]} 25... Nc4 {[%clk 0:00:49.7]} 26. Qd3
{[%clk 0:00:47.5]} 26... e4 {[%clk 0:00:46.4]} 27. fxe4 {[%clk 0:00:45.8]} 27...
dxe4 {[%clk 0:00:37.9]} 28. Qc3 {[%clk 0:00:45.8]} 28... Qe5 {[%clk 0:00:17.2]}
29. Bxf6 {[%clk 0:00:16.9]} 29... Qxf6 {[%clk 0:00:14.9]} 30. Rxe4 {[%clk
0:00:12.6]} 30... Qxc3 {[%clk 0:00:10.8]} 31. bxc3 {[%clk 0:00:13.5]} 31... Nd6
{[%clk 0:00:10.2]} 32. Rf4 {[%clk 0:00:11.7]} 32... Nxf5 {[%clk 0:00:07.8]} 33.
Rxf5 {[%clk 0:00:12.6]} 33... Rd1+ {[%clk 0:00:06.7]} 34. Kb2 {[%clk 0:00:12.7]}
34... Rh6 {[%clk 0:00:06.7]} 35. Rgf3 {[%clk 0:00:13]} 35... f6 {[%clk 0:00:06]}
36. Nd4 {[%clk 0:00:12.3]} 36... Rg6 {[%clk 0:00:05.3]} 37. Rxh5 {[%clk
0:00:11.8]} 37... Rxg2 {[%clk 0:00:04.5]} 38. Rh8+ {[%clk 0:00:10.3]} 38... Kf7
{[%clk 0:00:02.9]} 39. Rh7+ {[%clk 0:00:10.6]} 39... Kf8 {[%clk 0:00:02.6]} 40.
Ne6+ {[%clk 0:00:09.7]} 40... Ke8 {[%clk 0:00:03]} 41. Re3 {[%clk 0:00:08.6]}
41... Rd7 {[%clk 0:00:01.6]} 42. Ng7+ {[%clk 0:00:06.2]} 42... Kd8 {[%clk
0:00:02]} 43. Ne6+ {[%clk 0:00:04.5]} 1-0

[Event "*** Titled Tuesday Blitz"]
[Site "Chess.com"]
[Date "2021.04.06"]
[Round "4"]
[White "schondeln"]
[Black "Ermito2020"]
[Result "0-1"]
[WhiteElo "2376"]
[BlackElo "2544"]
[TimeControl "180+1"]
[EndTime "10:40:36 PDT"]
[Termination "Ermito2020 won by resignation"]

1. e4 {[%clk 0:03:00.9]} 1... c5 {[%clk 0:02:59.1]} 2. Nf3 {[%clk 0:03:00.9]}
2... d6 {[%clk 0:02:59.1]} 3. Bc4 {[%clk 0:03:00.9]} 3... Nc6 {[%clk 0:02:57.3]}
4. O-O {[%clk 0:03:00.4]} 4... Nf6 {[%clk 0:02:52.7]} 5. Re1 {[%clk 0:03:00.2]}
5... e6 {[%clk 0:02:44]} 6. Bb3 {[%clk 0:02:59.6]} 6... Be7 {[%clk 0:02:41.3]}
7. c3 {[%clk 0:02:59.4]} 7... O-O {[%clk 0:02:41.2]} 8. d4 {[%clk 0:02:59.5]}
8... cxd4 {[%clk 0:02:41.1]} 9. cxd4 {[%clk 0:03:00.4]} 9... d5 {[%clk
0:02:39.6]} 10. e5 {[%clk 0:02:55.3]} 10... Ne4 {[%clk 0:02:38.9]} 11. Bc2
{[%clk 0:02:54.5]} 11... Nb4 {[%clk 0:02:30.2]} 12. Bxe4 {[%clk 0:02:53.8]}
12... dxe4 {[%clk 0:02:30.2]} 13. Rxe4 {[%clk 0:02:53.5]} 13... Bd7 {[%clk
0:02:30.4]} 14. Nc3 {[%clk 0:02:52.8]} 14... Bc6 {[%clk 0:02:29]} 15. Re1 {[%clk
0:02:52.3]} 15... Bxf3 {[%clk 0:02:16.6]} 16. gxf3 {[%clk 0:02:48.1]} 16... Qd7
{[%clk 0:02:13.3]} 17. a3 {[%clk 0:02:43]} 17... Nd5 {[%clk 0:02:10]} 18. Ne4
{[%clk 0:02:37.4]} 18... f6 {[%clk 0:02:07.8]} 19. Qd3 {[%clk 0:02:31.7]} 19...
fxe5 {[%clk 0:01:53.9]} 20. dxe5 {[%clk 0:02:31.4]} 20... Rf5 {[%clk 0:01:53.6]}
21. Be3 {[%clk 0:02:24.9]} 21... Rxf3 {[%clk 0:01:46.4]} 22. Ng3 {[%clk
0:02:18.5]} 22... Raf8 {[%clk 0:01:39.5]} 23. Rad1 {[%clk 0:02:12.9]} 23... Qa4
{[%clk 0:01:32.3]} 24. Qe4 {[%clk 0:02:07.2]} 24... Qb5 {[%clk 0:01:29.1]} 25.
a4 {[%clk 0:02:02.8]} 25... Qxb2 {[%clk 0:01:22.4]} 26. Rxd5 {[%clk 0:02:00.8]}
26... exd5 {[%clk 0:01:20.8]} 27. Qxd5+ {[%clk 0:02:01.7]} 27... Kh8 {[%clk
0:01:19.1]} 28. Ne4 {[%clk 0:01:58.7]} 28... Qb4 {[%clk 0:01:07.3]} 29. Re2
{[%clk 0:01:48.6]} 29... Rd8 {[%clk 0:01:00.7]} 30. Nd6 {[%clk 0:01:41.6]} 30...
Qg4+ {[%clk 0:00:52.3]} 31. Kf1 {[%clk 0:01:39.6]} 31... Rdf8 {[%clk 0:00:24.2]}
32. Ke1 {[%clk 0:01:28.9]} 32... Bg5 {[%clk 0:00:20.3]} 33. e6 {[%clk
0:01:06.2]} 33... Qb4+ {[%clk 0:00:18.7]} 34. Kf1 {[%clk 0:00:56.7]} 34... Bxe3
{[%clk 0:00:16.4]} 35. Nf7+ {[%clk 0:00:53.4]} 35... R3xf7 {[%clk 0:00:15.8]}
36. exf7 {[%clk 0:00:53.7]} 36... Qb1+ {[%clk 0:00:16.1]} 37. Re1 {[%clk
0:00:50.7]} 37... Qg6 {[%clk 0:00:15.6]} 38. Rxe3 {[%clk 0:00:49.2]} 38... h6
{[%clk 0:00:16.5]} 39. Rf3 {[%clk 0:00:47.9]} 39... Kh7 {[%clk 0:00:15.7]} 40.
Qf5 {[%clk 0:00:47.8]} 40... Qxf5 {[%clk 0:00:15.4]} 41. Rxf5 {[%clk 0:00:48.7]}
41... Kg6 {[%clk 0:00:16.3]} 42. Rb5 {[%clk 0:00:41]} 42... Rxf7 {[%clk
0:00:15.6]} 43. a5 {[%clk 0:00:41.5]} 43... Rf8 {[%clk 0:00:16.5]} 44. Kg2
{[%clk 0:00:41.1]} 44... Rf7 {[%clk 0:00:17.4]} 45. Kg3 {[%clk 0:00:41.3]} 45...
Re7 {[%clk 0:00:13.7]} 46. f4 {[%clk 0:00:40.9]} 46... Kf6 {[%clk 0:00:14]} 47.
Kg4 {[%clk 0:00:40.9]} 47... g6 {[%clk 0:00:14]} 48. h4 {[%clk 0:00:41.1]} 48...
h5+ {[%clk 0:00:13.6]} 49. Kf3 {[%clk 0:00:41.5]} 49... Rd7 {[%clk 0:00:13]} 50.
Ke4 {[%clk 0:00:41.4]} 50... Re7+ {[%clk 0:00:13.3]} 51. Kf3 {[%clk 0:00:41.5]}
51... Rc7 {[%clk 0:00:13]} 52. Ke4 {[%clk 0:00:41.4]} 52... Rc4+ {[%clk
0:00:12.7]} 53. Kf3 {[%clk 0:00:41.6]} 53... Ra4 {[%clk 0:00:12.6]} 54. Ke3
{[%clk 0:00:39.2]} 54... a6 {[%clk 0:00:12.2]} 55. Rxb7 {[%clk 0:00:36.8]} 55...
Rxa5 {[%clk 0:00:11.2]} 56. Rb6+ {[%clk 0:00:35.6]} 56... Kf5 {[%clk 0:00:11.1]}
57. Rb8 {[%clk 0:00:32.5]} 57... Ra3+ {[%clk 0:00:10]} 58. Kf2 {[%clk
0:00:30.5]} 58... Kxf4 {[%clk 0:00:10.6]} 0-1

[Event "*** Titled Tuesday Blitz"]
[Site "Chess.com"]
[Date "2021.04.06"]
[Round "4"]
[White "Rodchenkov_Vitalij"]
[Black "Ladislav1969"]
[Result "0-1"]
[WhiteElo "2171"]
[BlackElo "2353"]
[TimeControl "180+1"]
[EndTime "10:40:36 PDT"]
[Termination "Ladislav1969 won by resignation"]

1. Nf3 {[%clk 0:03:00.9]} 1... c5 {[%clk 0:02:59.8]} 2. c4 {[%clk 0:03:00.1]}
2... Nf6 {[%clk 0:02:59.8]} 3. Nc3 {[%clk 0:02:58.4]} 3... g6 {[%clk 0:02:59.9]}
4. e4 {[%clk 0:02:52.5]} 4... d6 {[%clk 0:02:59]} 5. d4 {[%clk 0:02:46.7]} 5...
cxd4 {[%clk 0:02:58.7]} 6. Nxd4 {[%clk 0:02:47.6]} 6... b6 {[%clk 0:02:59]} 7.
g3 {[%clk 0:02:41.3]} 7... Bb7 {[%clk 0:02:58.7]} 8. Bg2 {[%clk 0:02:36.3]} 8...
Bg7 {[%clk 0:02:32.6]} 9. O-O {[%clk 0:02:35]} 9... Qd7 {[%clk 0:02:28.1]} 10.
Re1 {[%clk 0:02:32]} 10... Nc6 {[%clk 0:02:27.4]} 11. Be3 {[%clk 0:02:25.3]}
11... O-O {[%clk 0:02:21.2]} 12. Qd2 {[%clk 0:02:25.4]} 12... Ng4 {[%clk
0:02:13.6]} 13. Nxc6 {[%clk 0:02:14.6]} 13... Qxc6 {[%clk 0:02:00.4]} 14. Nd5
{[%clk 0:01:50]} 14... Rfe8 {[%clk 0:01:47.6]} 15. Rac1 {[%clk 0:01:33.3]} 15...
Nxe3 {[%clk 0:01:45]} 16. Nxe3 {[%clk 0:01:21.9]} 16... Qc5 {[%clk 0:01:33.6]}
17. b4 {[%clk 0:01:16.8]} 17... Qc7 {[%clk 0:00:55.1]} 18. Nd5 {[%clk
0:01:14.6]} 18... Qd7 {[%clk 0:00:54.6]} 19. Ne3 {[%clk 0:00:58.5]} 19... Qe6
{[%clk 0:00:47.5]} 20. f4 {[%clk 0:00:48.4]} 20... Bxe4 {[%clk 0:00:37.2]} 21.
Nd5 {[%clk 0:00:44.7]} 21... f5 {[%clk 0:00:26.3]} 22. Nc7 {[%clk 0:00:44.4]}
22... Qd7 {[%clk 0:00:21.3]} 23. Nxa8 {[%clk 0:00:42.4]} 23... Bxg2 {[%clk
0:00:18.1]} 24. Qxg2 {[%clk 0:00:41]} 24... e6 {[%clk 0:00:15.9]} 25. Rcd1
{[%clk 0:00:37.4]} 25... Bc3 {[%clk 0:00:14.6]} 26. Re2 {[%clk 0:00:36.8]} 26...
Bxb4 {[%clk 0:00:14.6]} 27. a3 {[%clk 0:00:34.8]} 27... Bc5+ {[%clk 0:00:13.4]}
28. Kh1 {[%clk 0:00:33.5]} 28... Qc8 {[%clk 0:00:13.2]} 29. h3 {[%clk
0:00:32.6]} 29... Qxa8 {[%clk 0:00:12.9]} 30. Qxa8 {[%clk 0:00:33.4]} 30... Rxa8
{[%clk 0:00:12.8]} 31. Kg2 {[%clk 0:00:34]} 31... Kf7 {[%clk 0:00:12.7]} 32.
Rde1 {[%clk 0:00:33.7]} 32... Re8 {[%clk 0:00:12.6]} 33. Kf3 {[%clk 0:00:33.5]}
33... Kf6 {[%clk 0:00:12.8]} 34. g4 {[%clk 0:00:33.8]} 34... e5 {[%clk
0:00:13.1]} 35. fxe5+ {[%clk 0:00:33.9]} 35... dxe5 {[%clk 0:00:11.9]} 36. Rd2
{[%clk 0:00:33.2]} 36... e4+ {[%clk 0:00:11.7]} 37. Kg2 {[%clk 0:00:31.1]} 37...
Bxa3 {[%clk 0:00:10.3]} 38. Ra2 {[%clk 0:00:30.5]} 38... Bb4 {[%clk 0:00:09.2]}
39. Ree2 {[%clk 0:00:28.6]} 39... a5 {[%clk 0:00:08.9]} 40. gxf5 {[%clk
0:00:25.6]} 40... gxf5 {[%clk 0:00:09.2]} 41. Kg3 {[%clk 0:00:26.2]} 41... Ke5
{[%clk 0:00:09.5]} 42. Kh4 {[%clk 0:00:24.3]} 42... Rg8 {[%clk 0:00:09.3]} 43.
Rg2 {[%clk 0:00:22.6]} 43... Rxg2 {[%clk 0:00:09]} 44. Rxg2 {[%clk 0:00:23.5]}
44... f4 {[%clk 0:00:09.5]} 45. Rg7 {[%clk 0:00:22.5]} 45... e3 {[%clk
0:00:08.6]} 46. Rg8 {[%clk 0:00:20]} 46... Ke4 {[%clk 0:00:08.2]} 47. Re8+
{[%clk 0:00:20.1]} 47... Kf3 {[%clk 0:00:08.2]} 48. Kg5 {[%clk 0:00:18.5]} 48...
e2 {[%clk 0:00:07.9]} 49. Kh6 {[%clk 0:00:18.7]} 49... e1=Q {[%clk 0:00:07.4]}
50. Rxe1 {[%clk 0:00:19]} 50... Bxe1 {[%clk 0:00:08.1]} 51. Kxh7 {[%clk
0:00:19.6]} 51... Ke4 {[%clk 0:00:08.4]} 52. h4 {[%clk 0:00:19.3]} 52... Bxh4
{[%clk 0:00:08]} 53. Kg6 {[%clk 0:00:19]} 53... f3 {[%clk 0:00:08.9]} 54. Kh5
{[%clk 0:00:18.7]} 54... f2 {[%clk 0:00:09.2]} 0-1